Cogmind - Beta 13 X1 @@@ ROGUE MODE // 2023.10.21 @ 11:05:16 Player: Plexion Result: Self-destructed Performance ------------- Evolutions (2) 1000 Regions Visited (5) 1000 Robots Destroyed (70) 350 Value Destroyed (1957) 1957 Prototype IDs (24) 480 Alien Tech Used (0) 0 Bonus (373) 373 TOTAL SCORE: 5160 Bonus ------- High Alert Combat Kills 73 Aligned with FarCom 300 Cogmind --------- Core Integrity 507/550 Matter 273/300 Energy 53/100 System Corruption 0% Temperature Cool (0) Movement Treading (158) Location -8/Materials Parts ------- > --- POWER (1) -------- (None) > --- PROPULSION (4) --- Light Treads Light Treads Armored Treads Advanced Treads > --- UTILITY (4) ------ High-capacity Storage Unit Advanced Targeting Computer Improved Medium Armor Plating Improved Medium Armor Plating > --- WEAPON (2) ------- Assault Cannon Assault Cannon > --- INVENTORY (20) --- Micro Nuclear Core Micro Nuclear Core Improved VTOL Module Improved VTOL Module Small Storage Unit Experimental Sensor Array Targeting Computer Light Armor Plating Light Armor Plating Medium Armor Plating Medium Armor Plating Improved Light Armor Plating Improved Medium Armor Plating Hacking Suite Rocket Launcher Mini Grenade Launcher Plasma Cutter Plasma Cutter Enhanced Flamer Great Maul Peak State ------------ > --- POWER ------------ (None) > --- PROPULSION ------- Light Treads Light Treads Armored Treads Advanced Treads > --- UTILITY ---------- High-capacity Storage Unit Advanced Targeting Computer Improved Medium Armor Plating Improved Medium Armor Plating > --- WEAPON ----------- Assault Cannon Assault Cannon > --- INVENTORY -------- Micro Nuclear Core Micro Nuclear Core Improved VTOL Module Improved VTOL Module Small Storage Unit Experimental Sensor Array Targeting Computer Light Armor Plating Light Armor Plating Medium Armor Plating Medium Armor Plating Improved Light Armor Plating Improved Medium Armor Plating Hacking Suite Rocket Launcher Mini Grenade Launcher Plasma Cutter Plasma Cutter Enhanced Flamer Great Maul [Rating: 31] Favorites ----------- Power Ion Engine Engine Ion Engine Propulsion Light Treads Treads Light Treads Flight Unit Improved VTOL Module Utility High-capacity Storage Unit Storage High-capacity Storage Unit Processor Advanced Targeting Computer Protection Improved Medium Armor Plating Weapon Assault Rifle Energy Gun Medium Laser Ballistic Gun Assault Rifle Ballistic Cannon Assault Cannon Launcher Rocket Launcher Build | -11 -10 -10 -10 -9 -8 ------- Run | Jun Mat Min Exi Min Mat Slots Evolved 4 | . . . . . 4 Power . | . . . . . . Propulsion 2 | . . . . . 2 Utility 2 | . . . . . 2 Weapon . | . . . . . . Parts Attached 35 | 6 6 3 . 2 18 Power 2 | 1 1 . . . . Engine 2 | 1 1 . . . . Core . | . . . . . . Reactor . | . . . . . . Propulsion 13 | 2 1 1 . . 9 Treads 12 | 2 1 1 . . 8 Leg . | . . . . . . Wheel . | . . . . . . Hover . | . . . . . . Flight 1 | . . . . . 1 Utility 11 | 1 3 1 . 2 4 Device . | . . . . . . Storage 3 | 1 1 . . 1 . Processor 1 | . . . . . 1 Hackware . | . . . . . . Protection 7 | . 2 1 . 1 3 Artifact . | . . . . . . Weapon 9 | 2 1 1 . . 5 Energy Gun 3 | 1 1 . . . 1 Energy Cannon . | . . . . . . Ballistic Gun 2 | 1 . 1 . . . Ballistic Cannon 3 | . . . . . 3 Launcher 1 | . . . . . 1 Special Weapon . | . . . . . . Impact Weapon . | . . . . . . Slashing Weapon . | . . . . . . Piercing Weapon . | . . . . . . Special Melee Weapon . | . . . . . . Unidentified Prototypes 1 | . . . . . 1 Parts Lost 11 | . 2 3 . 2 4 Power 2 | . 1 . . . 1 Propulsion 3 | . . 1 . . 2 Utility 3 | . . 1 . 1 1 Weapon 3 | . 1 1 . 1 . Highest Loss Streak 3 | . 2 3 . 2 2 To Critical Strikes . | . . . . . . Average Slot Usage (%) 93 | . 96 98 100 87 90 Engine 11 | . 13 14 14 14 6 Treads 29 | . 28 28 28 28 34 Storage 12 | . 14 14 14 14 9 Processor 2 | . . . . . 8 Protection 14 | . 11 14 14 13 16 Energy Gun 8 | . 20 14 14 2 . Ballistic Gun 9 | . 7 12 14 14 3 Ballistic Cannon 3 | . . . . . 12 Naked Turns . | . . . . . . Heaviest Build 69 | 12 35 36 36 56 69 Greatest Support 82 | 40 40 40 40 40 82 Greatest Overweight (x) 1 | . . . . 1 1 Average Overweight (x) . | . . . . . . Largest Inventory Capacity 20 | 8 15 15 15 20 20 Average Capacity 16 | 7 10 15 15 19 20 Most Carried 20 | 2 10 10 10 13 20 Average Carried 11 | . 6 9 10 11 18 Final Capacity 20 | 8 15 15 15 20 20 Final Carried 20 | 2 10 10 10 13 20 Class Distribution -------------------- 100% | Mutant Dominant Class ---------------- Mutant | -10/Materials Mutant | -10/Mines Mutant | -10/Exiles Mutant | -9/Mines Mutant | -8/Materials Resources | -11 -10 -10 -10 -9 -8 ----------- Run | Jun Mat Min Exi Min Mat Matter Collected 1568 | 161 250 28 . 79 1050 Remotely . | . . . . . . Salvage Created 2181 | . 659 119 . 187 1216 Parts 121 | . 34 5 . 21 61 Haulers Intercepted 7 | . 2 . . . 5 Recyclers Shooed 4 | . 3 . . . 1 Parts Field Recycled . | . . . . . . Retrieved Matter . | . . . . . . Parts Self-Destructed . | . . . . . . Prevented . | . . . . . . Kills | -11 -10 -10 -10 -9 -8 ------- Run | Jun Mat Min Exi Min Mat Combat Hostiles Destroyed 54 | . 10 3 . 9 32 Guns 24 | . 9 3 . 9 3 Cannons 25 | . . . . . 25 AOE 4 | . . . . . 4 Classes Destroyed 8 | . 5 1 . . 2 Worker 1 | . . . . . 1 Builder 2 | . 1 . . 1 . Hauler 7 | . 2 . . . 5 Recycler 1 | . 1 . . . . Watcher 5 | . 2 . . . 3 Swarmer 16 | . . 1 . 7 8 Grunt 30 | . 10 2 . 2 16 Sentry 8 | . . . . . 8 Best Kill Streak 4 | . 2 2 . 4 4 Combat Bots Only 4 | . 2 2 . 4 4 Max Kills in Single Turn 3 | . 1 1 . 2 3 Gunslinging 1 | . . . . 1 . Exploded 3 | . . . . . 3 Melee . | . . . . . . Uniques/NPCs Destroyed . | . . . . . . Combat | -11 -10 -10 -10 -9 -8 -------- Run | Jun Mat Min Exi Min Mat Damage Taken 2495 | . 698 288 . 302 1207 Core 256 | . 134 53 . 26 43 Absorbed by Shields . | . . . . . . Regen/Repaired (Parts) 55 | . 55 . . . . Core Remaining (%) 57 | 100 . . . 14 . Volleys Fired 230 | . 79 13 1 22 115 Largest 2 | . 2 2 2 2 2 Hottest 90 | . 90 90 70 70 88 Shots Fired 410 | . 155 16 2 34 203 Gun 262 | . 155 16 2 34 55 Cannon 146 | . . . . . 146 Launcher 2 | . . . . . 2 Special . | . . . . . . Kinetic 288 | . 63 1 1 22 201 Thermal 120 | . 92 15 1 12 . Explosive 2 | . . . . . 2 Electromagnetic . | . . . . . . Robot Hit Streak 16 | . 14 5 . 4 16 Robot Miss Streak 7 | . 4 2 2 3 7 Penetration Max . | . . . . . . Secondary Targets 2 | . 1 . . 1 . Max Gunslinging Chain 1 | . 1 . . 1 . Shots Hit Robots 278 | . 103 11 . 22 142 Core Hits 119 | 1 38 6 . 12 62 Critical Kills 1 | . . . . . 1 Critical Parts Destroyed . | . . . . . . Critical Strikes 11 | . . 1 . 2 8 Burn 3 | . . 1 . 2 . Destroy 1 | . . . . . 1 Blast 7 | . . . . . 7 Melee Attacks . | . . . . . . Impact . | . . . . . . Slashing . | . . . . . . Piercing . | . . . . . . Sneak Attacks . | . . . . . . Combat Hostiles . | . . . . . . Follow-up Attacks . | . . . . . . Damage Inflicted 4721 | 5 1055 139 . 292 3230 Guns 1995 | . 1055 139 . 286 515 Cannons 2522 | . . . . . 2522 Explosions 185 | . . . . . 185 Melee . | . . . . . . Ramming 19 | 5 . . . 6 8 Kinetic 3542 | . 327 11 . 167 3037 Thermal 975 | . 728 128 . 119 . Explosive 185 | . . . . . 185 Electromagnetic . | . . . . . . Impact . | . . . . . . Slashing . | . . . . . . Piercing . | . . . . . . Highest Corruption . | . . . . . . Average Corruption . | . . . . . . Corruption Purged . | . . . . . . Corruption Blocked . | . . . . . . Overload Shots . | . . . . . . Overflow Damage 48 | . . . . . 48 Projectiles 48 | . . . . . 48 Explosions . | . . . . . . Melee . | . . . . . . Knockbacks 32 | . . . . . 32 Impact . | . . . . . . Kinetic 32 | . . . . . 32 Secondary . | . . . . . . Self-Inflicted Damage . | . . . . . . Shots . | . . . . . . Rammed 5 | 2 . . . 1 2 Targets Rammed 6 | 2 . . . 2 2 Kicked . | . . . . . . Crushed 1 | . . . . 1 . Highest Temperature 355 | . 355 285 18 165 245 Average Temperature 75 | . 80 162 12 62 56 Received Heat Transfer 1236 | . 429 159 . 108 540 Effects 2 | . 2 . . . . Energy Bleed 1 | . 1 . . . . Matter Decay 1 | . 1 . . . . Siege Activations . | . . . . . . Robots Corrupted . | . . . . . . Combat Hostiles . | . . . . . . Parts Fried . | . . . . . . Impact Corruptions . | . . . . . . Robots Melted 1 | . 1 . . . . Combat Hostiles 1 | . 1 . . . . Parts Melted 6 | . 3 3 . . . Heat Transferred 2682 | . 1769 432 . 481 . Parts Sabotaged . | . . . . . . Parts Stolen . | . . . . . . Parts Stripped . | . . . . . . Power Chain Reactions . | . . . . . . Missiles Intercepted . | . . . . . . Alert | -11 -10 -10 -10 -9 -8 ------- Run | Jun Mat Min Exi Min Mat Peak Influence 618 | . 182 85 . 195 618 Initial 4 | . . 4 . . . Average 108 | . 67 28 . 42 247 Maximum Alert Level 2 | . . . . . 2 Low Security (%) 83 | 100 100 100 . 100 46 Level 1 9 | . . . . . 30 Level 2 6 | . . . . . 22 Level 3 . | . . . . . . Level 4 . | . . . . . . Level 5 . | . . . . . . High Security . | . . . . . . Max Security . | . . . . . . Squads Dispatched 10 | . 2 1 . . 7 Investigation 5 | . 2 1 . . 2 Extermination . | . . . . . . Reinforcement 2 | . . . . . 2 Assault . | . . . . . . Garrison 3 | . . . . . 3 Intercept . | . . . . . . Searches Triggered . | . . . . . . Construction Impeded . | . . . . . . Haulers Reinforced . | . . . . . . Active Scanning Responses . | . . . . . . Cargo Convoy Interrupts . | . . . . . . Stealth | -11 -10 -10 -10 -9 -8 --------- Run | Jun Mat Min Exi Min Mat Distress Signals 5 | . 2 . . . 3 Communications Jammed . | . . . . . . Distress Signals . | . . . . . . Times Spotted 77 | . 20 5 . 10 42 Peak Tracking Total 4 | . 4 3 . 3 4 Tactical Retreats 3 | . 1 . . . 2 Traps | -11 -10 -10 -10 -9 -8 ------- Run | Jun Mat Min Exi Min Mat Traps Triggered 2 | . 1 . . . 1 Indirectly . | . . . . . . Trap Hack Attempts . | . . . . . . Triggered . | . . . . . . Disarmed . | . . . . . . Reprogrammed . | . . . . . . Reused . | . . . . . . Traps Extracted . | . . . . . . Installed . | . . . . . . Triggered . | . . . . . . Machines | -11 -10 -10 -10 -9 -8 ---------- Run | Jun Mat Min Exi Min Mat Machines Disabled 1 | . . . 1 . . Max in Single Turn 1 | . . . 1 . . Machines Repaired . | . . . . . . Machines Sabotaged . | . . . . . . Overloaded Fab Kills . | . . . . . . Hacking | -11 -10 -10 -10 -9 -8 --------- Run | Jun Mat Min Exi Min Mat Machines Accessed 9 | . 4 1 2 . 2 Terminals 3 | . 2 . . . 1 Fabricators . | . . . . . . Repair Stations 1 | . 1 . . . . Recycling Units 1 | . 1 . . . . Scanalyzers . | . . . . . . Garrison Access 1 | . . . . . 1 Total Hacks 17 | . 10 1 2 . 4 Successful 10 | . 5 1 2 . 2 Failed 7 | . 5 . . . 2 Catastrophic 1 | . . . . . 1 Database Lockouts . | . . . . . . Manual 10 | . 6 . 1 . 3 Terminals 7 | . 5 . . . 2 Fabricators . | . . . . . . Repair Stations 4 | . 4 . . . . Recycling Units 1 | . 1 . . . . Scanalyzers . | . . . . . . Garrison Access 2 | . . . . . 2 Terminal Hacks 7 | . 2 1 2 . 2 Record 1 | . . . 1 . . Robot Analysis 3 | . 2 . . . 1 Open Door 1 | . . 1 . . . Zone Layout 1 | . . . . . 1 Derelict Proto ID Bank 1 | . . . 1 . . Fabricator Hacks . | . . . . . . Repair Station Hacks 2 | . 2 . . . . Scan Component 1 | . 1 . . . . Repair 1 | . 1 . . . . Recycling Unit Hacks . | . . . . . . Scanalyzer . | . . . . . . Garrison Access Hacks . | . . . . . . Unauthorized Hacks 1 | . 1 . . . . Terminals . | . . . . . . Fabricators . | . . . . . . Repair Stations . | . . . . . . Recycling Units 1 | . 1 . . . . Tunnel 1 | . 1 . . . . Scanalyzers . | . . . . . . Garrison Access . | . . . . . . Data Cores Recovered . | . . . . . . Used . | . . . . . . Hacking Detections 3 | . 2 . . . 1 Full Trace Events 1 | . . . . . 1 Feedback Events . | . . . . . . Feedback Blocked . | . . . . . . Robot Schematics Acquired . | . . . . . . Robots Built . | . . . . . . Authchips . | . . . . . . Time . | . . . . . . Total Robot Build Rating . | . . . . . . Part Schematics Acquired . | . . . . . . Parts Built . | . . . . . . Authchips . | . . . . . . Time . | . . . . . . Total Part Build Rating . | . . . . . . Parts Repaired 1 | . 1 . . . . Time 32 | . 32 . . . . Parts Recycled . | . . . . . . Recycled Matter . | . . . . . . Retrieved Matter . | . . . . . . Retrieved Components . | . . . . . . Parts Scanalyzed . | . . . . . . Part Schematics Acquired . | . . . . . . Parts Damaged . | . . . . . . Bothacking | -11 -10 -10 -10 -9 -8 ------------ Run | Jun Mat Min Exi Min Mat Used RIF Installer . | . . . . . . Robots Hacked . | . . . . . . Non-combat . | . . . . . . Combat . | . . . . . . Robot Hacks Applied . | . . . . . . Relay Couplers Released . | . . . . . . Fabnet Peak Effective % . | . . . . . . Robots Rewired . | . . . . . . Allies Hacked . | . . . . . . Hacks Repelled . | . . . . . . Allies | -11 -10 -10 -10 -9 -8 -------- Run | Jun Mat Min Exi Min Mat Total Allies 1 | . . 1 . . . Largest Group 1 | . . 1 1 . . Highest-Rated Group 31 | . . 31 31 . . Highest-Rated Ally 31 | . . 31 31 . . Total Orders . | . . . . . . Ally Attacks . | . . . . . . Total Damage . | . . . . . . Kills . | . . . . . . Allies Corrupted . | . . . . . . Allies Melted . | . . . . . . Intel | -11 -10 -10 -10 -9 -8 ------- Run | Jun Mat Min Exi Min Mat Robot Analysis Total 3 | . 2 . . . 1 Derelict Logs Recovered 4 | . . 2 . 2 . Drone Launches . | . . . . . . Drone Recoveries . | . . . . . . Exploration | -11 -10 -10 -10 -9 -8 ------------- Run | Jun Mat Min Exi Min Mat Turns Passed 5894 | 89 1362 1003 428 1340 1672 Spaces Moved 2890 | 52 671 604 259 557 747 Core 7 | 7 . . . . . Treads 2883 | 45 671 604 259 557 747 Legs . | . . . . . . Wheels . | . . . . . . Hover . | . . . . . . Flight . | . . . . . . Fastest Speed 50 | 50 160 160 160 160 158 Average Speed 175 | 145 160 160 160 227 170 Slowest Speed 243 | 160 160 160 160 240 243 Overloaded Moves . | . . . . . . Propulsion Burnouts . | . . . . . . Robots Hopped . | . . . . . . Cave-ins Triggered . | . . . . . . Exploration Rate (%) 70 | 4 86 97 69 97 72 Regions Visited 5 Branch Regions 3 Pre-discovered Areas 5 | . 1 1 1 2 . Known Exits Taken . | . . . . . . Unknown Exits Taken 5 | 1 1 1 1 1 . Scrap Searched 5 | . . 3 . 2 . Spaces Dug . | . . . . . . Terrain Destroyed 33 | . . . . . 33 Melee . | . . . . . . Projectile 19 | . . . . . 19 AOE 14 | . . . . . 14 Terrain Rammed . | . . . . . . Walls Destroyed . | . . . . . . Machines Disabled . | . . . . . . Actions | -11 -10 -10 -10 -9 -8 --------- Run | Jun Mat Min Exi Min Mat Total 3306 | 61 816 625 271 593 940 Wait 109 | . 51 3 12 8 35 Move 2885 | 51 670 603 258 556 747 Hop . | . . . . . . Pick Up 31 | 2 9 3 . 3 14 Fast Attach 14 | 6 2 . . . 6 Attach 10 | . 2 3 . 1 4 Detach . | . . . . . . Swap 11 | . 2 . . 1 8 Drop 10 | . 1 . . . 9 Fire 230 | . 79 13 1 22 115 Melee . | . . . . . . Ram . | . . . . . . Kick . | . . . . . . Crush 6 | 2 . . . 2 2 Escape Stasis . | . . . . . . Rewire . | . . . . . . Trap . | . . . . . . Miscellaneous . | . . . . . . Route ------- -11/Junkyard -10/Materials (discovered 4 exits: [*Mat x3] / *Min) -10/Mines (discovered 3 exits: [*Mat x2] / *Exi) -10/Exiles -9/Mines (discovered 2 exits: *Mat x2) -8/Materials (discovered 3 exits: [*Fac x2] / *Sto) History --------- Turn | Location | Event 8 | -11/Junkyard | Discovered new exit (range 15) 90 | -11/Junkyard | Entered Materials 300 | -10/Materials | Build established: Mutant 495 | -10/Materials | Discovered new exit (range 13) 672 | -10/Materials | Repaired Med. Armor Plating 851 | -10/Materials | Core integrity fell below 50% 1077 | -10/Materials | Discovered new exit (range 15) 1234 | -10/Materials | Discovered new exit (range 15) 1436 | -10/Materials | Discovered new exit (range 11) 1452 | -10/Materials | Entered Mines 1507 | -10/Mines | Lost 3 parts (1n1u1w) 1558 | -10/Mines | Met a Derelict shopkeep closing up shop 1680 | -10/Mines | Discovered new exit (range 8) 2045 | -10/Mines | Found a damaged Exp. Sensor Array with a note attached 2048 | -10/Mines | Found Prototype Device 2260 | -10/Mines | Discovered new exit (range 13) 2263 | -10/Mines | Received a Mining Laser from a helpful Derelict 2449 | -10/Mines | Deemed a non-threat by the Exiles lab entrance 2449 | -10/Mines | Discovered new exit (range 5) 2455 | -10/Mines | Entered Exiles 2455 | -10/Exiles | Accompanied by 1 ally 2495 | -10/Exiles | Met 8R-AWN 2521 | -10/Exiles | Met EX-HEX 2588 | -10/Exiles | Met EX-DEC 2617 | -10/Exiles | Learned location of Zion (-7) 2651 | -10/Exiles | Met EX-BIN 2675 | -10/Exiles | Aligned with FarCom system 2676 | -10/Exiles | Given EX-Vault access code 2715 | -10/Exiles | Opened EX-Vault 2748 | -10/Exiles | Warned to stay clear of 0b10 Research branches 2780 | -10/Exiles | Exiles lab attacked by MAIN.C 2855 | -10/Exiles | Discovered new exit (range 10) 2881 | -10/Exiles | Attacked by the Exiles 2883 | -10/Exiles | Entered Mines 2963 | -9/Mines | Core integrity fell below 20% 3131 | -9/Mines | Learned location of Storage (-8) 3572 | -9/Mines | Discovered new exit (range 9) 4054 | -9/Mines | Discovered new exit (range 4) 4136 | -9/Mines | A weapon hastily lodged in a ceiling crevice suddenly fell to the ground 4223 | -9/Mines | Entered Materials 4223 | -8/Materials | Evolved 4 slots: Propulsion x2, Utility x2 4224 | -8/Materials | Identified exit to Storage 4683 | -8/Materials | Garrison activated, responded to threat 5311 | -8/Materials | Discovered new exit (range 11) 5691 | -8/Materials | Discovered new exit (range 9) 5895 | -8/Materials | Self-destructed Last Messages --------------- 05776_ K-01 Serf destroyed. 05779_ Acquired 1 matter. 05781_ Acquired 3 matter. 05799_ S-10 Pest destroyed. 05803_ Acquired 5 matter. 05805_ S-10 Pest destroyed. 05806_ Acquired 7 matter. 05808_ Acquired 19 matter. 05810_ Acquired 11 matter. 05816_ U-05 Engineer builds a Wall. 05817_ K-01 Serf collects debris. 05824_ A-02 Transporter destroyed. 05825_ U-05 Engineer builds a Wall. 05827_ Acquired 5 matter. 05830_ Acquired 35 matter. 05831_ Acquired 5 matter. 05833_ Acquired 7 matter. 05869_ Triggered Alarm Trap. 05869_ An alarm sounds. 05869_ ALERT: Alarm triggered, dispatching investigation squad. Map ----- +----------------------------------------------------+ | ????????????????????##????????????? | | ???????????????????? #???????????? | | ?????########??"""""" #???????????? | | ?????# ! # """"""" ######??????? | | ?????# !# """"""" # #????### | | ?????#""" # """"""" # #????# | | ?????#""" # """"""" #== ###### | | ??????""" !# #[![ =% * | | ???????? # ] [#!#####+### | | ???????###+######+#####=##? ## | | ???????# ! ! ### ### | | ???????# !!###### #?# | | ??######### ! !!#????# #?# | | # *** # #????# #?# | | # *** + ###??# ### | | # ** # """ #??# # | | # # """ #??# # | | # ! ! ?# """ ## #??# # | | # ?# ## #??###### | | ?#######??# "# #???????# | | ?#######??# """ T# #???????# | | ?# ?# """ "# #???????# | | ?# // ?# """ ##+##???????#### | | ?# // # #????????????? | | ?# // # #??????????? ! | | ?# @ =#?????????# | | ?# """ # #"T"###?????????# * | | ?? """ ## #"""#???????????#"" | | ??? """ ??? #####???????????#"Y | | ??? ??? #???????????????#"" | | ???#####???? #???????????????# | | ???????????? #????????????????##### | | ???????????? #????????????????????? | | ????????????##????????????????????? | | ??????????????????????????????????? | | ??????????????????????????????????? | | ??????????????????????????????????? | | ??????????????????????????????????? | | ??????????????????????????????????? | | ??????????????????????????????????? | | ??????????????????????????????????? | | ??????????????????????????????????? | | ??????????????????????????????????? | | ??????????????????????????????????? | | ??????????????????????????????????? | | ??????????????????????????????????? | | ??????????????????????????????????? | | ??????????????????????????????????? | | ??????????????????????????????????? | | ??????????????????????????????????? | +----------------------------------------------------+ Best States ------------- Heat Dissipation 31 Energy Generation 10 Energy Capacity 250 Matter Stores 300 Matter Capacity 300 Sight Range 16 Terrain Scan Density 10 Armor Coverage 450 Evasion (%) 40 Targeting Accuracy 8 Recoil Reduction 4 Item Schematics ----------------- None Robot Schematics ------------------ None Fabricated ------------ Nothing Alien Tech Used ----------------- None Achievements -------------- None Challenges ------------ None Game ------ Seed RemoteProcessingActivator Manual? 0 Play Time 00:27:16 Cumulative 451.4 hours Start 2023.10.21 @ 10:43:22 End 2023.10.21 @ 11:05:16 Sessions 1 Manual Loads 0 Difficulty Rogue Special Mode None Game No. 528 Rogue 441 Adventurer 87 Explorer 0 Win Type - Total 25 Types 8/0/14/1/1/0/1/0/0 Lore% 89 Gallery% 92 Achievement% 76 Wizard Run 0 Options --------- ASCII 0 Keyboard 1 Movement Numpad Keybinds 0 Fullscreen 1 Font 18/SmallcapsGlow Map View 76x50 Tactical HUD 1 Map Filters NONE Filters NONE Steam 1 RUN: 72850a95-87b0-4c88-a32b-2c9ac467bc1f